[Event "Late-Titled-Tuesday-Blitz-April-30-2024"]
[Site "Chess.com"]
[Date "2024.04.30"]
[Round "1"]
[White "Firouzja2003"]
[Black "ArmanGhevondyanchess"]
[Result "1-0"]
[WhiteElo "3146"]
[BlackElo "2535"]
[TimeControl "180+1"]
[EndTime "14:08:03 PDT"]
[Termination "Firouzja2003 won by resignation"]

1. e4 {[%clk 0:03:00.9]} 1... c5 {[%clk 0:02:59.9]} 2. Nf3 {[%clk 0:02:59.2]}
2... Nc6 {[%clk 0:03:00.2]} 3. d4 {[%clk 0:02:58.8]} 3... cxd4 {[%clk
0:03:01.1]} 4. Nxd4 {[%clk 0:02:59.4]} 4... g6 {[%clk 0:03:01.7]} 5. c4 {[%clk
0:02:56.8]} 5... Bg7 {[%clk 0:03:01.9]} 6. Be3 {[%clk 0:02:56.4]} 6... Nf6
{[%clk 0:03:02.2]} 7. Nc3 {[%clk 0:02:53]} 7... O-O {[%clk 0:03:01.8]} 8. f3
{[%clk 0:02:47]} 8... d6 {[%clk 0:03:00.4]} 9. Qd2 {[%clk 0:02:46.6]} 9... Nxd4
{[%clk 0:03:00.5]} 10. Bxd4 {[%clk 0:02:47.5]} 10... a5 {[%clk 0:03:00.5]} 11.
Be2 {[%clk 0:02:38.1]} 11... a4 {[%clk 0:02:55.3]} 12. O-O {[%clk 0:02:35.5]}
12... Bd7 {[%clk 0:02:53.8]} 13. Rfd1 {[%clk 0:02:30.3]} 13... Bc6 {[%clk
0:02:52.7]} 14. Rac1 {[%clk 0:02:25.7]} 14... Qa5 {[%clk 0:02:49.4]} 15. Be3
{[%clk 0:02:14.8]} 15... Rfc8 {[%clk 0:02:45.5]} 16. Bf1 {[%clk 0:02:12.3]}
16... Nd7 {[%clk 0:02:40.5]} 17. Rc2 {[%clk 0:02:07.3]} 17... Nc5 {[%clk
0:02:37.3]} 18. Qc1 {[%clk 0:02:01.1]} 18... b6 {[%clk 0:02:14.1]} 19. Nd5
{[%clk 0:01:57.4]} 19... Bxd5 {[%clk 0:02:14.2]} 20. cxd5 {[%clk 0:01:58.3]}
20... a3 {[%clk 0:02:05.9]} 21. b3 {[%clk 0:01:53.4]} 21... Bb2 {[%clk
0:01:56.7]} 22. Qd2 {[%clk 0:01:42.1]} 22... Qxd2 {[%clk 0:01:54.3]} 23. Rcxd2
{[%clk 0:01:43]} 23... Rc7 {[%clk 0:01:28]} 24. Bb5 {[%clk 0:01:36]} 24... Rac8
{[%clk 0:01:28.1]} 25. Bc6 {[%clk 0:01:35.7]} 25... e5 {[%clk 0:01:18.4]} 26.
Kf1 {[%clk 0:01:31.6]} 26... f6 {[%clk 0:01:16.9]} 27. Ke2 {[%clk 0:01:21.2]}
27... Kf7 {[%clk 0:01:17.3]} 28. Rc2 {[%clk 0:01:17.2]} 28... f5 {[%clk
0:01:16.6]} 29. Rc4 {[%clk 0:01:11.9]} 29... Rb8 {[%clk 0:00:58.4]} 30. Rb4
{[%clk 0:01:07.4]} 30... Bc3 {[%clk 0:00:52.4]} 31. Rc4 {[%clk 0:01:07.3]} 31...
Bb2 {[%clk 0:00:52.7]} 32. g4 {[%clk 0:01:05.1]} 32... f4 {[%clk 0:00:52.3]} 33.
Bc1 {[%clk 0:00:56.8]} 33... Bxc1 {[%clk 0:00:43.7]} 34. Rdxc1 {[%clk
0:00:57.7]} 34... Na6 {[%clk 0:00:41.6]} 35. Ra4 {[%clk 0:00:55.9]} 35... Nc5
{[%clk 0:00:42]} 36. Rxa3 {[%clk 0:00:56.2]} 36... Kf6 {[%clk 0:00:42.4]} 37. b4
{[%clk 0:00:54.2]} 37... Nd7 {[%clk 0:00:41.7]} 38. Rac3 {[%clk 0:00:45.3]}
38... Nf8 {[%clk 0:00:40]} 39. h4 {[%clk 0:00:43.1]} 39... h6 {[%clk 0:00:39.8]}
40. a4 {[%clk 0:00:42.6]} 40... Ra7 {[%clk 0:00:40]} 41. Kd3 {[%clk 0:00:40.5]}
41... Ke7 {[%clk 0:00:38.1]} 42. Kc4 {[%clk 0:00:40.1]} 42... Kd8 {[%clk
0:00:32]} 43. Kb5 {[%clk 0:00:39.9]} 43... Nd7 {[%clk 0:00:31.5]} 44. Bxd7
{[%clk 0:00:39.7]} 44... Kxd7 {[%clk 0:00:32.4]} 45. Rc6 {[%clk 0:00:39.2]}
45... Rba8 {[%clk 0:00:33]} 46. Rxb6 {[%clk 0:00:38]} 46... Rxa4 {[%clk
0:00:31.4]} 47. Rcc6 {[%clk 0:00:37]} 47... Ra3 {[%clk 0:00:24.6]} 48. Rxd6+
{[%clk 0:00:36.9]} 48... Ke7 {[%clk 0:00:25.5]} 49. Re6+ {[%clk 0:00:34]} 49...
Kf7 {[%clk 0:00:26]} 50. Rf6+ {[%clk 0:00:34.3]} 50... Ke7 {[%clk 0:00:24]} 51.
Rbe6+ {[%clk 0:00:34.2]} 51... Kd7 {[%clk 0:00:23.9]} 52. Rf7+ {[%clk
0:00:33.7]} 52... Kd8 {[%clk 0:00:23.7]} 53. Rf8+ {[%clk 0:00:27.2]} 53... Kd7
{[%clk 0:00:24]} 54. Rxa8 {[%clk 0:00:27.2]} 54... Rxa8 {[%clk 0:00:24.9]} 55.
Rxg6 {[%clk 0:00:26.8]} 55... Ra3 {[%clk 0:00:25.2]} 56. Rxh6 {[%clk 0:00:27.2]}
56... Rxf3 {[%clk 0:00:25.5]} 57. Rf6 {[%clk 0:00:26.6]} 57... Re3 {[%clk
0:00:24.5]} 58. Kc5 {[%clk 0:00:23.1]} 58... Rxe4 {[%clk 0:00:24.7]} 59. g5
{[%clk 0:00:21.2]} 59... f3 {[%clk 0:00:23.4]} 60. Rxf3 {[%clk 0:00:20.6]} 60...
Rxh4 {[%clk 0:00:23.9]} 61. Rf7+ {[%clk 0:00:20.8]} 61... Ke8 {[%clk 0:00:24.5]}
62. Rf5 {[%clk 0:00:19]} 62... e4 {[%clk 0:00:22.8]} 63. Re5+ {[%clk 0:00:19.3]}
63... Kf7 {[%clk 0:00:23.7]} 64. b5 {[%clk 0:00:19.5]} 64... Kg6 {[%clk
0:00:22.4]} 65. b6 {[%clk 0:00:19.7]} 65... Rh1 {[%clk 0:00:22.2]} 66. Rxe4
{[%clk 0:00:19.7]} 66... Rc1+ {[%clk 0:00:23.1]} 67. Rc4 {[%clk 0:00:19.8]}
67... Rb1 {[%clk 0:00:24]} 68. Rb4 {[%clk 0:00:19.6]} 68... Rc1+ {[%clk
0:00:24.4]} 69. Kd6 {[%clk 0:00:20.2]} 69... Rc4 {[%clk 0:00:24.7]} 1-0

[Event "Late-Titled-Tuesday-Blitz-April-30-2024"]
[Site "Chess.com"]
[Date "2024.04.30"]
[Round "1"]
[White "Harsha_Bharathakoti"]
[Black "wild3000"]
[Result "0-1"]
[WhiteElo "2902"]
[BlackElo "2512"]
[TimeControl "180+1"]
[EndTime "14:08:05 PDT"]
[Termination "wild3000 won by resignation"]

1. Nf3 {[%clk 0:02:57.8]} 1... d5 {[%clk 0:02:37.8]} 2. g3 {[%clk 0:02:55.8]}
2... Nf6 {[%clk 0:02:34.5]} 3. Bg2 {[%clk 0:02:55.3]} 3... g6 {[%clk 0:02:34]}
4. b3 {[%clk 0:02:42.2]} 4... Bg7 {[%clk 0:02:33.9]} 5. Bb2 {[%clk 0:02:43.1]}
5... O-O {[%clk 0:02:34.1]} 6. c4 {[%clk 0:02:43.7]} 6... c6 {[%clk 0:02:33.8]}
7. O-O {[%clk 0:02:39.8]} 7... Nbd7 {[%clk 0:02:32.6]} 8. d4 {[%clk 0:02:34.3]}
8... Ne4 {[%clk 0:02:28.5]} 9. Nc3 {[%clk 0:02:28.3]} 9... Nxc3 {[%clk
0:02:28.1]} 10. Bxc3 {[%clk 0:02:29.2]} 10... Nf6 {[%clk 0:02:26.8]} 11. Ne5
{[%clk 0:02:29.7]} 11... Be6 {[%clk 0:02:23.6]} 12. Rc1 {[%clk 0:02:25.3]} 12...
Ne4 {[%clk 0:02:12.2]} 13. Bb2 {[%clk 0:02:25.5]} 13... a5 {[%clk 0:02:02.3]}
14. Nd3 {[%clk 0:02:25.3]} 14... Nd6 {[%clk 0:01:40.3]} 15. Nf4 {[%clk
0:02:22.4]} 15... a4 {[%clk 0:01:31]} 16. cxd5 {[%clk 0:02:11.2]} 16... cxd5
{[%clk 0:01:28.1]} 17. Nxe6 {[%clk 0:02:09.1]} 17... fxe6 {[%clk 0:01:27.7]} 18.
Qd3 {[%clk 0:02:07.9]} 18... axb3 {[%clk 0:01:25]} 19. axb3 {[%clk 0:02:06.1]}
19... Qb6 {[%clk 0:01:22.1]} 20. Bh3 {[%clk 0:01:58.9]} 20... Nf5 {[%clk
0:01:17.8]} 21. e3 {[%clk 0:01:59.3]} 21... h5 {[%clk 0:01:12.6]} 22. Rc2 {[%clk
0:01:52.7]} 22... Rfc8 {[%clk 0:01:11]} 23. Rxc8+ {[%clk 0:01:50.3]} 23... Rxc8
{[%clk 0:01:10.6]} 24. Ra1 {[%clk 0:01:51.2]} 24... Qc6 {[%clk 0:01:05.8]} 25.
Rc1 {[%clk 0:01:48.1]} 25... Qd7 {[%clk 0:01:05.8]} 26. Rxc8+ {[%clk 0:01:45.2]}
26... Qxc8 {[%clk 0:01:05.7]} 27. Ba3 {[%clk 0:01:45.8]} 27... Kf7 {[%clk
0:01:04.7]} 28. Bf1 {[%clk 0:01:21]} 28... Qc6 {[%clk 0:00:56.6]} 29. Bb4 {[%clk
0:01:12.5]} 29... Nd6 {[%clk 0:00:48.7]} 30. Kg2 {[%clk 0:01:09.3]} 30... e5
{[%clk 0:00:41.3]} 31. dxe5 {[%clk 0:01:04.9]} 31... Bxe5 {[%clk 0:00:39]} 32.
Be2 {[%clk 0:01:04.3]} 32... Ne4 {[%clk 0:00:30.8]} 33. Bf3 {[%clk 0:00:38.1]}
33... Nf6 {[%clk 0:00:25.4]} 34. Qd1 {[%clk 0:00:33.3]} 34... Bd6 {[%clk
0:00:25.1]} 35. Bd2 {[%clk 0:00:32]} 35... e5 {[%clk 0:00:23.6]} 36. Kg1 {[%clk
0:00:26.2]} 36... e4 {[%clk 0:00:23.4]} 37. Be2 {[%clk 0:00:26.9]} 37... Be5
{[%clk 0:00:23.4]} 38. Qb1 {[%clk 0:00:27.5]} 38... d4 {[%clk 0:00:21.8]} 39.
exd4 {[%clk 0:00:27.6]} 39... Bxd4 {[%clk 0:00:22.2]} 40. Qd1 {[%clk 0:00:27.8]}
40... Qc5 {[%clk 0:00:21.6]} 41. Bc4+ {[%clk 0:00:28.1]} 41... Kg7 {[%clk
0:00:21.5]} 42. Qe2 {[%clk 0:00:29]} 42... Ng4 {[%clk 0:00:18.7]} 43. Be1 {[%clk
0:00:25.5]} 43... b5 {[%clk 0:00:17.4]} 44. Be6 {[%clk 0:00:22.5]} 44... e3
{[%clk 0:00:15.5]} 45. f3 {[%clk 0:00:14.2]} 45... Ne5 {[%clk 0:00:15.6]} 46. f4
{[%clk 0:00:14.9]} 46... Ng4 {[%clk 0:00:14.4]} 47. Bd7 {[%clk 0:00:10.8]} 47...
Qd5 {[%clk 0:00:13.1]} 48. Bxb5 {[%clk 0:00:05]} 48... Qxb3 {[%clk 0:00:11.5]}
49. Bd7 {[%clk 0:00:03.7]} 49... Qd5 {[%clk 0:00:10.4]} 50. Bxg4 {[%clk
0:00:04]} 50... hxg4 {[%clk 0:00:10]} 51. Bb4 {[%clk 0:00:02.9]} 51... Qf3
{[%clk 0:00:08.5]} 52. Qxf3 {[%clk 0:00:01]} 52... gxf3 {[%clk 0:00:09.4]} 53.
Be1 {[%clk 0:00:01.6]} 53... e2+ {[%clk 0:00:09.5]} 54. Bf2 {[%clk 0:00:01.8]}
54... Bc3 {[%clk 0:00:08.7]} 0-1

[Event "Late-Titled-Tuesday-Blitz-April-30-2024"]
[Site "Chess.com"]
[Date "2024.04.30"]
[Round "1"]
[White "maksimys18"]
[Black "frederiksvane"]
[Result "0-1"]
[WhiteElo "2512"]
[BlackElo "3014"]
[TimeControl "180+1"]
[EndTime "14:08:07 PDT"]
[Termination "frederiksvane won by checkmate"]

1. d4 {[%clk 0:03:00.1]} 1... Nf6 {[%clk 0:02:54.3]} 2. Nf3 {[%clk 0:03:00.1]}
2... e6 {[%clk 0:02:50.6]} 3. c4 {[%clk 0:02:59]} 3... b6 {[%clk 0:02:50.7]} 4.
Nc3 {[%clk 0:02:58.5]} 4... Bb7 {[%clk 0:02:50.5]} 5. Bg5 {[%clk 0:02:58.5]}
5... Bb4 {[%clk 0:02:50.3]} 6. e3 {[%clk 0:02:57.8]} 6... h6 {[%clk 0:02:46.7]}
7. Bh4 {[%clk 0:02:57.6]} 7... O-O {[%clk 0:02:47]} 8. Bd3 {[%clk 0:02:55.4]}
8... d6 {[%clk 0:02:42.4]} 9. O-O {[%clk 0:02:54.4]} 9... Bxc3 {[%clk
0:02:41.4]} 10. bxc3 {[%clk 0:02:54.1]} 10... Nbd7 {[%clk 0:02:42]} 11. Nd2
{[%clk 0:02:51.8]} 11... e5 {[%clk 0:02:10.9]} 12. Be4 {[%clk 0:02:44.1]} 12...
Bxe4 {[%clk 0:02:06.3]} 13. Nxe4 {[%clk 0:02:43.9]} 13... g5 {[%clk 0:02:02.2]}
14. Nxf6+ {[%clk 0:02:43.2]} 14... Qxf6 {[%clk 0:01:27.6]} 15. Bg3 {[%clk
0:02:42.3]} 15... Rfe8 {[%clk 0:01:27.5]} 16. Qd3 {[%clk 0:02:34.5]} 16... Qg6
{[%clk 0:01:25.3]} 17. Qxg6+ {[%clk 0:02:32.2]} 17... fxg6 {[%clk 0:01:26.2]}
18. Rab1 {[%clk 0:02:24]} 18... Kf7 {[%clk 0:01:25.7]} 19. Rb2 {[%clk
0:02:22.7]} 19... Ke6 {[%clk 0:01:21.6]} 20. Rfb1 {[%clk 0:02:21.2]} 20... Rec8
{[%clk 0:01:11.5]} 21. Kf1 {[%clk 0:02:20.5]} 21... c5 {[%clk 0:01:11]} 22. d5+
{[%clk 0:02:14]} 22... Ke7 {[%clk 0:01:09.9]} 23. Ke2 {[%clk 0:02:13.4]} 23...
Rf8 {[%clk 0:01:03.5]} 24. f3 {[%clk 0:02:12.8]} 24... Kd8 {[%clk 0:00:59.1]}
25. a4 {[%clk 0:02:08.8]} 25... Kc7 {[%clk 0:00:55]} 26. a5 {[%clk 0:02:07.7]}
26... Rfb8 {[%clk 0:00:51.9]} 27. a6 {[%clk 0:01:57.4]} 27... Rf8 {[%clk
0:00:51.6]} 28. Kd3 {[%clk 0:01:55.6]} 28... Rf7 {[%clk 0:00:50.4]} 29. h4
{[%clk 0:01:52.4]} 29... gxh4 {[%clk 0:00:46.9]} 30. Bxh4 {[%clk 0:01:52.3]}
30... g5 {[%clk 0:00:47.5]} 31. Bg3 {[%clk 0:01:49.7]} 31... h5 {[%clk 0:00:47]}
32. Bh2 {[%clk 0:01:41.9]} 32... Raf8 {[%clk 0:00:40]} 33. Rf1 {[%clk
0:01:29.4]} 33... Nb8 {[%clk 0:00:34.9]} 34. Ra2 {[%clk 0:01:28.1]} 34... Re8
{[%clk 0:00:34.4]} 35. Ke2 {[%clk 0:01:23.2]} 35... Rg8 {[%clk 0:00:33.8]} 36.
Kd3 {[%clk 0:01:21.6]} 36... Nd7 {[%clk 0:00:31.5]} 37. Raf2 {[%clk 0:01:17.7]}
37... Rgf8 {[%clk 0:00:26.9]} 38. Ke2 {[%clk 0:01:10.4]} 38... Nf6 {[%clk
0:00:24.3]} 39. Bg3 {[%clk 0:00:26.8]} 39... Rb8 {[%clk 0:00:20.3]} 40. Rb1
{[%clk 0:00:25.2]} 40... Rg8 {[%clk 0:00:15.6]} 41. Bh2 {[%clk 0:00:25]} 41...
Rgf8 {[%clk 0:00:15]} 42. Bg3 {[%clk 0:00:24.5]} 42... h4 {[%clk 0:00:15.4]} 43.
Bh2 {[%clk 0:00:24.2]} 43... Ng4 {[%clk 0:00:14.8]} 44. Bg1 {[%clk 0:00:23.9]}
44... Nxf2 {[%clk 0:00:15]} 45. Bxf2 {[%clk 0:00:24.8]} 45... e4 {[%clk
0:00:15.1]} 46. f4 {[%clk 0:00:20.7]} 46... gxf4 {[%clk 0:00:15.2]} 47. Bxh4
{[%clk 0:00:20.7]} 47... Rg8 {[%clk 0:00:15]} 48. Kf2 {[%clk 0:00:13.6]} 48...
fxe3+ {[%clk 0:00:14.3]} 49. Kxe3 {[%clk 0:00:14]} 49... Rxg2 {[%clk 0:00:14.6]}
50. Rh1 {[%clk 0:00:10.4]} 50... Rg4 {[%clk 0:00:10.9]} 51. Be1 {[%clk
0:00:09.4]} 51... b5 {[%clk 0:00:08.2]} 52. cxb5 {[%clk 0:00:08.9]} 52... Kb6
{[%clk 0:00:08.5]} 53. c4 {[%clk 0:00:09.2]} 53... Rf3+ {[%clk 0:00:08.5]} 54.
Ke2 {[%clk 0:00:09.1]} 54... Rg2+ {[%clk 0:00:08.6]} 55. Kd1 {[%clk 0:00:08.9]}
55... Ra3 {[%clk 0:00:06.8]} 56. Bd2 {[%clk 0:00:08.3]} 56... Ra1+ {[%clk
0:00:07]} 57. Bc1 {[%clk 0:00:08.5]} 57... e3 {[%clk 0:00:06.7]} 58. Re1 {[%clk
0:00:08.3]} 58... Rd2# {[%clk 0:00:06.8]} 0-1

[Event "Late-Titled-Tuesday-Blitz-April-30-2024"]
[Site "Chess.com"]
[Date "2024.04.30"]
[Round "1"]
[White "Bilan_Danila"]
[Black "canary2016"]
[Result "1-0"]
[WhiteElo "2569"]
[BlackElo "2166"]
[TimeControl "180+1"]
[EndTime "14:08:07 PDT"]
[Termination "Bilan_Danila won by checkmate"]

1. d4 {[%clk 0:03:00.9]} 1... Nf6 {[%clk 0:02:58.9]} 2. Nf3 {[%clk 0:03:00.4]}
2... e6 {[%clk 0:02:56.9]} 3. g3 {[%clk 0:03:00.7]} 3... d5 {[%clk 0:02:52.7]}
4. Bg2 {[%clk 0:03:00.9]} 4... c5 {[%clk 0:02:47]} 5. c4 {[%clk 0:03:00.8]} 5...
Nc6 {[%clk 0:02:34.4]} 6. cxd5 {[%clk 0:02:58.5]} 6... exd5 {[%clk 0:02:31.2]}
7. O-O {[%clk 0:02:58.9]} 7... Be7 {[%clk 0:02:25.1]} 8. Nc3 {[%clk 0:02:58]}
8... O-O {[%clk 0:02:22.8]} 9. dxc5 {[%clk 0:02:58.6]} 9... Bxc5 {[%clk
0:02:22.4]} 10. Bg5 {[%clk 0:02:59.3]} 10... d4 {[%clk 0:02:09.3]} 11. Ne4
{[%clk 0:02:59.4]} 11... Be7 {[%clk 0:02:09]} 12. Bxf6 {[%clk 0:02:56.7]} 12...
Bxf6 {[%clk 0:02:08.6]} 13. Rc1 {[%clk 0:02:57.4]} 13... Bf5 {[%clk 0:02:02.3]}
14. Nc5 {[%clk 0:02:53]} 14... Qe7 {[%clk 0:01:51.9]} 15. Qa4 {[%clk 0:02:17.9]}
15... Rac8 {[%clk 0:01:39.4]} 16. Rfe1 {[%clk 0:02:02.9]} 16... Rfd8 {[%clk
0:01:10.2]} 17. Nd2 {[%clk 0:01:35.2]} 17... Bg5 {[%clk 0:00:47.2]} 18. Ncb3
{[%clk 0:01:14.6]} 18... Nb4 {[%clk 0:00:19.8]} 19. Rxc8 {[%clk 0:01:06.2]}
19... Rxc8 {[%clk 0:00:19.9]} 20. Qxa7 {[%clk 0:01:05.8]} 20... Nc2 {[%clk
0:00:18.8]} 21. Rf1 {[%clk 0:00:41.8]} 21... Qxe2 {[%clk 0:00:18.4]} 22. Nf3
{[%clk 0:00:42.3]} 22... Bd3 {[%clk 0:00:15.3]} 23. Nxg5 {[%clk 0:00:35.3]}
23... Qe7 {[%clk 0:00:14.4]} 24. Qxb7 {[%clk 0:00:24.5]} 24... Qxb7 {[%clk
0:00:10.7]} 25. Bxb7 {[%clk 0:00:25.4]} 25... Rb8 {[%clk 0:00:10.7]} 26. Be4
{[%clk 0:00:21.3]} 26... Bxf1 {[%clk 0:00:08.4]} 27. Kxf1 {[%clk 0:00:22.1]}
27... Nb4 {[%clk 0:00:08.1]} 28. Nxd4 {[%clk 0:00:19.6]} 28... Nxa2 {[%clk
0:00:08.3]} 29. b3 {[%clk 0:00:18.7]} 29... Nc1 {[%clk 0:00:07.5]} 30. Bc2
{[%clk 0:00:14.9]} 30... h6 {[%clk 0:00:06.6]} 31. Ngf3 {[%clk 0:00:13.8]} 31...
Kf8 {[%clk 0:00:04.4]} 32. Ke1 {[%clk 0:00:14.2]} 32... Na2 {[%clk 0:00:04.5]}
33. Kd2 {[%clk 0:00:14.6]} 33... Nb4 {[%clk 0:00:04.9]} 34. Kc3 {[%clk
0:00:14.6]} 34... Nxc2 {[%clk 0:00:05.3]} 35. Kxc2 {[%clk 0:00:14.8]} 35... Ke8
{[%clk 0:00:04.9]} 36. Kc3 {[%clk 0:00:14.8]} 36... Rc8+ {[%clk 0:00:05.4]} 37.
Kd3 {[%clk 0:00:14.7]} 37... Rb8 {[%clk 0:00:05.7]} 38. Nd2 {[%clk 0:00:15.2]}
38... Kd7 {[%clk 0:00:06.2]} 39. Nc4 {[%clk 0:00:15.6]} 39... Re8 {[%clk
0:00:04.3]} 40. Ne3 {[%clk 0:00:13.4]} 40... Ra8 {[%clk 0:00:04.6]} 41. b4
{[%clk 0:00:13.3]} 41... Ra3+ {[%clk 0:00:04.3]} 42. Kc4 {[%clk 0:00:13.6]}
42... Ra2 {[%clk 0:00:04.3]} 43. Ndc2 {[%clk 0:00:14.3]} 43... Rb2 {[%clk
0:00:04.1]} 44. Kc3 {[%clk 0:00:13]} 44... Rb1 {[%clk 0:00:04.5]} 45. Nc4 {[%clk
0:00:12.2]} 45... Kc8 {[%clk 0:00:04.8]} 46. f4 {[%clk 0:00:12]} 46... Rh1
{[%clk 0:00:04.9]} 47. h4 {[%clk 0:00:12.6]} 47... Rh3 {[%clk 0:00:04.8]} 48. b5
{[%clk 0:00:12.6]} 48... Rxg3+ {[%clk 0:00:05.1]} 49. Kb4 {[%clk 0:00:13.5]}
49... Rg4 {[%clk 0:00:05.4]} 50. Kc5 {[%clk 0:00:13.5]} 50... Rxf4 {[%clk
0:00:05.6]} 51. Nb4 {[%clk 0:00:14]} 51... Rxh4 {[%clk 0:00:05.7]} 52. b6 {[%clk
0:00:14]} 52... Rh5+ {[%clk 0:00:05.5]} 53. Kc6 {[%clk 0:00:14.4]} 53... Rh4
{[%clk 0:00:04.4]} 54. b7+ {[%clk 0:00:14.4]} 54... Kb8 {[%clk 0:00:04.6]} 55.
Na6+ {[%clk 0:00:15.1]} 55... Ka7 {[%clk 0:00:04.6]} 56. b8=Q+ {[%clk 0:00:16]}
56... Kxa6 {[%clk 0:00:04.4]} 57. Qb6# {[%clk 0:00:16.9]} 1-0

[Event "Late-Titled-Tuesday-Blitz-April-30-2024"]
[Site "Chess.com"]
[Date "2024.04.30"]
[Round "1"]
[White "carokannlover213"]
[Black "el_sporco"]
[Result "1-0"]
[WhiteElo "2779"]
[BlackElo "2433"]
[TimeControl "180+1"]
[EndTime "14:08:11 PDT"]
[Termination "carokannlover213 won by resignation"]

1. e4 {[%clk 0:03:00.9]} 1... e5 {[%clk 0:02:58.2]} 2. Nf3 {[%clk 0:03:00.9]}
2... Nc6 {[%clk 0:02:59.1]} 3. Bc4 {[%clk 0:03:01.2]} 3... Nf6 {[%clk 0:02:59]}
4. d3 {[%clk 0:03:00]} 4... Bc5 {[%clk 0:02:58.5]} 5. c3 {[%clk 0:02:59.7]} 5...
O-O {[%clk 0:02:58.2]} 6. O-O {[%clk 0:02:59.2]} 6... d5 {[%clk 0:02:56.1]} 7.
exd5 {[%clk 0:02:59.5]} 7... Nxd5 {[%clk 0:02:57]} 8. Re1 {[%clk 0:02:58.5]}
8... Nb6 {[%clk 0:02:53.9]} 9. Bb5 {[%clk 0:02:54.3]} 9... Bg4 {[%clk
0:02:49.5]} 10. h3 {[%clk 0:02:53.1]} 10... Bh5 {[%clk 0:02:44.2]} 11. Bxc6
{[%clk 0:02:52.6]} 11... bxc6 {[%clk 0:02:44.2]} 12. Rxe5 {[%clk 0:02:52.6]}
12... Bxf3 {[%clk 0:02:39.3]} 13. Qxf3 {[%clk 0:02:53.5]} 13... Bd6 {[%clk
0:02:37.3]} 14. Re2 {[%clk 0:02:51.6]} 14... Nd5 {[%clk 0:02:37.7]} 15. Nd2
{[%clk 0:02:44.1]} 15... Nf4 {[%clk 0:02:34.9]} 16. Re1 {[%clk 0:02:44.7]} 16...
Nxd3 {[%clk 0:02:33.9]} 17. Rd1 {[%clk 0:02:33]} 17... Nxc1 {[%clk 0:02:17.7]}
18. Raxc1 {[%clk 0:02:31.3]} 18... Rb8 {[%clk 0:02:07.5]} 19. Nc4 {[%clk
0:02:29.9]} 19... Qh4 {[%clk 0:02:03.8]} 20. Rd4 {[%clk 0:02:20.8]} 20... Qh6
{[%clk 0:01:56.9]} 21. Rcd1 {[%clk 0:02:19.7]} 21... c5 {[%clk 0:01:56.3]} 22.
Rd5 {[%clk 0:02:15]} 22... Rfd8 {[%clk 0:01:54.1]} 23. b3 {[%clk 0:02:11]} 23...
Qe6 {[%clk 0:01:47.5]} 24. R5d3 {[%clk 0:01:58]} 24... Rd7 {[%clk 0:01:40.9]}
25. Re3 {[%clk 0:01:55.3]} 25... Qg6 {[%clk 0:01:28.8]} 26. Ne5 {[%clk 0:01:43]}
26... Bxe5 {[%clk 0:01:23.2]} 27. Rxd7 {[%clk 0:01:43.9]} 27... Bd6 {[%clk
0:01:20.7]} 28. Qe4 {[%clk 0:01:32.5]} 28... Kf8 {[%clk 0:00:52.3]} 29. Qxg6
{[%clk 0:01:28.2]} 29... hxg6 {[%clk 0:00:53.2]} 30. g3 {[%clk 0:01:22]} 30...
Re8 {[%clk 0:00:52.7]} 31. Rd3 {[%clk 0:00:37]} 31... Re1+ {[%clk 0:00:49.2]}
32. Kg2 {[%clk 0:00:35.9]} 32... Ke8 {[%clk 0:00:50.1]} 33. R3xd6 {[%clk
0:00:31.7]} 33... cxd6 {[%clk 0:00:51]} 34. Rxd6 {[%clk 0:00:23.5]} 34... c4
{[%clk 0:00:47]} 35. Ra6 {[%clk 0:00:11.4]} 35... Rc1 {[%clk 0:00:43.7]} 36.
Rxa7 {[%clk 0:00:10]} 36... cxb3 {[%clk 0:00:43.8]} 37. axb3 {[%clk 0:00:10.9]}
37... Rxc3 {[%clk 0:00:44.5]} 38. b4 {[%clk 0:00:10.7]} 38... Rb3 {[%clk
0:00:44.8]} 39. Rb7 {[%clk 0:00:11.3]} 39... Kf8 {[%clk 0:00:44.4]} 40. b5
{[%clk 0:00:11.9]} 40... g5 {[%clk 0:00:43.8]} 41. b6 {[%clk 0:00:12.3]} 41...
g6 {[%clk 0:00:44.7]} 42. Rb8+ {[%clk 0:00:10.9]} 42... Kg7 {[%clk 0:00:45.6]}
43. Kf1 {[%clk 0:00:11.2]} 43... f5 {[%clk 0:00:45.4]} 44. Ke1 {[%clk
0:00:11.3]} 44... f4 {[%clk 0:00:44.8]} 45. Kd2 {[%clk 0:00:04.6]} 45... g4
{[%clk 0:00:36.7]} 46. hxg4 {[%clk 0:00:01.7]} 46... fxg3 {[%clk 0:00:36.9]} 47.
fxg3 {[%clk 0:00:02.6]} 47... Rxg3 {[%clk 0:00:34.7]} 48. Rc8 {[%clk 0:00:01.4]}
48... Rb3 {[%clk 0:00:30.4]} 49. Rc6 {[%clk 0:00:01.9]} 49... Kh6 {[%clk
0:00:30]} 50. Kc2 {[%clk 0:00:01.9]} 50... Rb5 {[%clk 0:00:27.9]} 51. Kc3 {[%clk
0:00:02.2]} 51... Kg5 {[%clk 0:00:27.9]} 52. Kc4 {[%clk 0:00:02.7]} 52... Rb1
{[%clk 0:00:27.8]} 53. Rc5+ {[%clk 0:00:02.9]} 53... Kxg4 {[%clk 0:00:26.9]} 54.
Rb5 {[%clk 0:00:03.8]} 54... Rd1 {[%clk 0:00:24.8]} 55. b7 {[%clk 0:00:03.6]}
55... Rd8 {[%clk 0:00:25.3]} 56. b8=Q {[%clk 0:00:03.7]} 56... Rxb8 {[%clk
0:00:25.9]} 57. Rxb8 {[%clk 0:00:04.6]} 57... g5 {[%clk 0:00:26.7]} 58. Kd3
{[%clk 0:00:05.2]} 58... Kf3 {[%clk 0:00:26.9]} 59. Rf8+ {[%clk 0:00:05.7]}
59... Kg2 {[%clk 0:00:27.1]} 60. Ke2 {[%clk 0:00:06.2]} 60... g4 {[%clk
0:00:27.3]} 61. Rf4 {[%clk 0:00:05.6]} 61... g3 {[%clk 0:00:28.2]} 62. Rh4
{[%clk 0:00:05.3]} 62... Kg1 {[%clk 0:00:28.1]} 63. Kf3 {[%clk 0:00:05.2]} 63...
g2 {[%clk 0:00:29]} 64. Rg4 {[%clk 0:00:04.5]} 64... Kh1 {[%clk 0:00:28.9]} 65.
Rh4+ {[%clk 0:00:04.8]} 65... Kg1 {[%clk 0:00:27.7]} 66. Kg3 {[%clk 0:00:05.7]}
66... Kf1 {[%clk 0:00:26.4]} 67. Rf4+ {[%clk 0:00:06.6]} 1-0